bitfinex-derivatives/quotes_SOLF0:USTF0_20250130
["timestamp","ask_amount","ask_price","bid_price","bid_amount"]
[1738264638385,13.9878494,240.05,239.87,11.2420494]
[1738264638885,13.9878494,240.05,239.88,0.75437368]
[1738264639284,13.9878494,240.05,239.97,4.1665]
[1738264639485,0.02816531,239.99,239.97,4.1665]
[1738264640187,0.02816531,239.99,239.98,4.1663]
[1738264641788,0.02816531,239.99,239.95,2.7119]
[1738264642794,0.02816531,239.99,239.98,4.1663]
[1738264643992,4.1653,240.05,240.01,4.1658]
[1738264644494,4.1646,240.09,240.04,4.1652]
[1738264644693,11.2420494,240.11,239.96,11.2420494]
[1738264645095,0.02682155,240.06,240.01,0.02703939]
[1738264645889,0.02682155,240.06,240.05,4.1651]
[1738264646592,0.02682155,240.06,240.01,0.02703939]
[1738264649894,0.02682155,240.06,240.04,4.1651]
[1738264650295,0.02682155,240.06,240.01,0.02703939]
[1738264651689,0.02682155,240.06,240.05,4.1651]
[1738264653094,7.1928841,240.13,240.08,4.1645]
[1738264653295,7.1928841,240.15,240.08,4.1645]
[1738264653487,7.1928841,240.13,240.08,4.1645]
[1738264653793,4.1641,240.11,240.08,4.1645]
[1738264654297,4.1641,240.11,240.07,0.02865871]
[1738264654497,7.1928841,240.09,240.07,0.02865871]
[1738264655096,4.1646,240.08,240.07,0.02865871]
[1738264658297,4.1661,240.0,239.95,15.4564841]
[1738264658497,7.1928841,240.03,239.95,11.2896841]
[1738264658798,4.1654,240.04,239.96,4.1666]
[1738264659097,11.24504245,240.07,239.96,4.1666]
[1738264659599,4.1659,240.01,239.99,0.03060789]
[1738264662199,0.02645508,240.04,239.99,0.03060789]
[1738264662396,4.166,240.0,239.99,0.03060789]
[1738264663000,4.166,240.0,239.97,4.152768]
[1738264667298,0.02645508,240.04,239.96,0.02684538]
[1738264667492,4.1658,240.01,239.98,4.1663]
[1738264669994,0.02645508,240.04,239.98,4.1663]
[1738264670201,4.1656,240.03,240.0,4.1659]
[1738264671602,4.1656,240.03,239.96,0.02684538]
[1738264671900,4.1657,240.02,239.98,4.1662]
[1738264672802,4.1657,240.02,239.99,4.1661]
[1738264676306,0.02645508,240.04,239.96,0.02684538]
[1738264676507,4.1659,240.01,239.97,4.1664]
[1738264676704,0.02645508,240.04,239.96,0.02684538]
[1738264677404,4.1655,240.03,240.0,4.1659]
[1738264677607,0.02645508,240.04,239.96,0.02684538]
[1738264678004,0.02645508,240.04,240.03,4.1654]
[1738264681809,7.19309856,240.13,240.08,4.1645]
[1738264682401,7.19309856,240.13,240.06,7.19309856]
[1738264682602,7.19309856,240.09,240.02,10.01569856]
[1738264682903,4.1646,240.08,240.07,0.03005274]
[1738264684106,7.19309856,240.11,240.07,0.03005274]
[1738264684312,4.1641,240.11,240.07,0.03005274]
[1738264684709,4.1641,240.11,240.07,4.1647]
[1738264685913,4.1641,240.11,240.07,4.19652895]
[1738264687111,0.02627041,240.12,240.07,0.03182895]
[1738264687415,0.02627041,240.12,240.11,7.19309856]
[1738264687710,0.02627041,240.12,240.11,11.35719856]
[1738264688713,7.19309856,240.21,240.11,7.19309856]
[1738264688913,7.19309856,240.25,240.18,7.19309856]
[1738264689214,4.1619,240.24,240.18,7.19309856]
[1738264689414,7.19309856,240.25,240.18,7.19309856]
[1738264689615,4.1623,240.21,240.16,7.19309856]
[1738264690016,4.192259,240.21,240.16,7.22218747]
[1738264690613,4.1625,240.2,240.16,7.22218747]
[1738264690812,4.1625,240.2,240.16,0.02908891]
[1738264691012,7.22305756,240.21,240.16,0.02908891]
[1738264691320,11.35609856,240.17,240.16,0.02908891]
[1738264692418,4.163,240.17,240.16,0.02908891]
[1738264698220,11.35609856,240.17,240.16,0.02908891]
[1738264705834,7.19309856,240.17,240.08,7.19309856]
[1738264706133,7.19309856,240.19,240.11,7.19309856]
[1738264706329,7.19309856,240.21,240.13,7.19309856]
[1738264706728,4.1627,240.19,240.13,7.19309856]
[1738264707038,0.02691791,240.18,240.14,0.02880504]
[1738264707237,4.18981791,240.18,240.15,4.1633]
[1738264708132,4.163,240.17,240.14,4.19230504]
[1738264710135,0.02691791,240.18,240.17,4.163]
[1738264710340,0.02691791,240.18,240.17,11.35609856]
[1738264711538,0.02691791,240.18,240.15,11.35629856]
[1738264711739,0.02691791,240.18,240.15,4.1632]
[1738264715737,0.02691791,240.18,240.17,4.163]
[1738264715945,0.02691791,240.18,240.17,11.35609856]
[1738264716142,0.02691791,240.18,240.17,7.19309856]
[1738264716646,0.02691791,240.18,240.15,7.19309856]
[1738264716834,4.18981791,240.18,240.15,7.19309856]
[1738264718545,4.18981791,240.18,240.15,11.35649856]
[1738264719638,4.1631,240.17,240.14,0.02880504]
[1738264719841,0.02691791,240.18,240.14,0.02880504]
[1738264720238,4.1634,240.15,240.14,0.02880504]
[1738264727654,4.1634,240.15,240.1,7.19309856]
[1738264728152,4.1633,240.16,240.12,7.19309856]
[1738264728346,0.02691791,240.18,240.12,7.19309856]
[1738264728553,0.02691791,240.18,240.14,7.19309856]
[1738264728852,0.02691791,240.18,240.16,4.1631]
[1738264729053,0.02691791,240.18,240.14,7.19309856]
[1738264729853,0.02691791,240.18,240.17,4.1634]
[1738264730052,0.02691791,240.18,240.14,7.19309856]
[1738264730749,0.02691791,240.18,240.15,4.1636]
[1738264730954,0.02691791,240.18,240.14,7.19309856]
[1738264731652,0.02691791,240.18,240.15,4.1634]
[1738264739566,4.18981791,240.18,240.15,4.1634]
[1738264740367,4.1635,240.15,240.11,4.1639]
[1738264740767,7.19309856,240.16,240.08,7.19309856]
[1738264741266,7.22001647,240.18,240.1,7.19309856]
[1738264741569,7.19309856,240.18,240.1,7.19309856]
[1738264741870,4.1637,240.14,240.1,11.35719856]
[1738264742168,0.03153741,240.16,240.1,11.35719856]
[1738264742373,7.19309856,240.12,240.04,7.19309856]
[1738264742569,7.19309856,240.08,240.0,8.52849856]
[1738264743068,4.1652,240.06,240.0,7.19309856]
[1738264743473,4.1652,240.06,240.01,4.1659]
[1738264744382,4.1652,240.05,240.0,11.35919856]
[1738264744668,4.1652,240.05,240.0,4.1661]
[1738264744972,4.19236228,240.05,240.0,4.1661]
[1738264745272,4.1657,240.02,239.96,7.19309856]
[1738264745466,7.19309856,240.04,239.96,7.19309856]
[1738264745671,0.02716228,240.05,239.98,7.19309856]
[1738264745873,7.19309856,240.06,239.98,7.19309856]
[1738264746075,0.02973715,240.04,239.98,7.19309856]
[1738264746670,0.02973715,240.04,239.91,20.98961109]
[1738264746671,0.02973715,240.04,239.96,7.19309856]
[1738264746969,0.02973715,240.04,240.03,4.1655]
[1738264748974,0.02973715,240.04,240.03,7.19309856]
[1738264749680,0.02973715,240.04,240.03,11.35859856]
[1738264751780,0.02973715,240.04,240.03,7.19309856]
[1738264752475,0.02973715,240.04,240.01,7.19309856]
[1738264753182,0.02973715,240.04,240.01,11.35879856]
[1738264754480,0.02973715,240.04,240.02,4.1657]
[1738264757681,0.02973715,240.04,240.01,7.19309856]
[1738264757887,0.02973715,240.04,240.03,11.35869856]
[1738264765284,0.02973715,240.04,240.01,11.35929856]
[1738264766091,0.02973715,240.04,240.03,4.1659]
[1738264766489,0.02973715,240.04,240.01,7.19309856]
[1738264766789,0.02973715,240.04,239.99,7.19309856]
[1738264767686,7.19309856,240.01,239.89,7.19309856]
[1738264767887,2.64,240.09,239.84,23.24677785]
[1738264767888,7.19309856,239.95,239.9,8.92937494]
[1738264768080,7.19309856,239.93,239.9,8.92937494]
[1738264768280,7.19309856,239.93,239.87,7.19309856]
[1738264768281,7.19309856,239.93,239.87,16.1224735]
[1738264768481,1.3939,240.03,239.91,7.19309856]
[1738264768685,0.03055282,239.92,239.91,7.19309856]
[1738264768887,7.19309856,239.99,239.91,7.19309856]
[1738264769191,4.1664,240.0,239.95,4.1672]
[1738264769389,0.0287964,239.97,239.95,4.1672]
[1738264770089,0.0287964,239.97,239.94,7.19309856]
[1738264770391,0.0287964,239.97,239.92,7.19309856]
[1738264770689,0.0287964,239.97,239.91,4.1679]
[1738264770690,7.22189496,239.97,239.91,4.1679]
[1738264771593,7.19309856,239.95,239.88,7.19309856]
[1738264772590,7.19309856,239.95,239.9,4.168]
[1738264773491,7.19309856,239.95,239.91,4.168]
[1738264773795,7.19309856,239.95,239.88,7.19309856]
[1738264773992,7.19309856,239.93,239.84,11.39619856]
[1738264774290,7.19309856,239.93,239.86,7.19309856]
[1738264774491,0.02993988,239.91,239.86,7.19309856]
[1738264774987,0.02993988,239.91,239.88,4.1684]
[1738264775389,0.02993988,239.91,239.86,7.19309856]
[1738264775590,0.02993988,239.91,239.88,4.1684]
[1738264776892,0.02993988,239.91,239.86,7.19309856]
[1738264777093,0.02993988,239.91,239.89,4.1683]
[1738264779487,0.02993988,239.91,239.9,4.1681]
[1738264781890,0.02993988,239.91,239.9,11.36119856]
[1738264783090,7.19309856,240.01,239.95,4.1671]
[1738264783898,4.1666,239.99,239.96,4.167]
[1738264784089,4.1666,239.99,239.96,4.19654077]
[1738264785897,4.1666,239.99,239.96,0.02954077]
[1738264786398,4.1666,239.99,239.96,4.19664077]
[1738264787791,7.19309856,239.99,239.96,0.02954077]
[1738264787996,4.1668,239.98,239.96,0.02954077]
[1738264788397,7.19309856,239.99,239.96,0.02954077]
[1738264788999,4.1669,239.97,239.96,0.02954077]
[1738264791194,11.35999856,239.97,239.96,0.02954077]
[1738264791394,7.19309856,239.97,239.86,7.19309856]
[1738264791591,4.1678,239.93,239.89,4.1683]
[1738264792602,4.19941437,239.93,239.86,7.19309856]
[1738264792894,0.03161437,239.93,239.88,7.19309856]
[1738264793799,0.03161437,239.93,239.88,1.41416842]
[1738264794001,0.03161437,239.93,239.91,4.1679]
[1738264795994,0.03161437,239.93,239.92,4.1678]
[1738264798206,0.03161437,239.93,239.92,4.1674]
[1738264799904,0.03161437,239.93,239.92,11.36049856]
[1738264803805,0.03161437,239.93,239.92,7.19309856]
[1738264805102,0.03161437,239.93,239.92,11.36049856]
[1738264805402,0.03161437,239.93,239.9,7.19309856]
[1738264805606,4.19881437,239.93,239.9,7.19309856]
[1738264806305,0.03161437,239.93,239.9,11.36069856]
[1738264806906,0.03161437,239.93,239.91,4.1675]
[1738264807303,4.19881437,239.93,239.88,7.19309856]
[1738264808498,0.03161437,239.93,239.88,7.19309856]
[1738264808700,0.03161437,239.93,239.9,4.1675]
[1738264809009,0.03161437,239.93,239.88,7.19309856]
[1738264811306,0.03161437,239.93,239.9,4.1675]
[1738264811706,0.03161437,239.93,239.88,7.19309856]
[1738264811906,2.8166,240.05,239.92,7.19309856]
[1738264812104,7.19309856,240.1,240.03,7.19309856]
[1738264812310,4.1649,240.07,240.03,7.19309856]
[1738264812613,49.53400974,240.12,240.03,7.19309856]
[1738264813105,4.1646,240.08,240.05,0.03205607]
[1738264813707,0.03067175,240.1,240.05,0.03205607]
[1738264813909,4.19507175,240.1,240.05,7.22515463]
[1738264814413,0.03067175,240.1,240.05,7.22515463]
[1738264814611,4.1644,240.09,240.05,7.22515463]
[1738264814818,0.03067175,240.1,240.05,0.03205607]
[1738264815108,4.19507175,240.1,240.05,0.03205607]
[1738264815311,0.03067175,240.1,240.03,7.19309856]
[1738264816211,0.03067175,240.1,240.05,7.19309856]
[1738264816412,7.19309856,240.16,240.09,7.19309856]
[1738264816610,4.1633,240.16,240.1,4.1642]
[1738264816813,8.53519856,240.18,240.1,4.1642]
[1738264816814,0.02685981,240.15,240.1,4.1642]
[1738264817011,0.02685981,240.15,240.09,7.19309856]
[1738264817716,4.1636,240.14,240.1,4.1642]
[1738264818010,0.02685981,240.15,240.1,4.1642]
[1738264819116,4.1636,240.14,240.1,4.1642]
[1738264819815,0.02685981,240.15,240.13,4.1637]
[1738264820115,0.02685981,240.15,240.13,7.19309856]
[1738264820514,0.02685981,240.15,240.14,4.1635]
[1738264821713,0.02685981,240.15,240.12,4.1638]
[1738264821912,0.02685981,240.15,240.09,7.19309856]
[1738264822616,11.35669856,240.14,240.08,4.1646]
[1738264822920,11.35669856,240.14,240.07,7.19309856]
[1738264823516,4.164,240.12,240.06,3.9887]
[1738264823817,7.19309856,240.14,240.06,3.9887]
[1738264824017,7.19309856,240.14,240.07,4.1647]
[1738264824215,7.19309856,240.14,240.07,11.35779856]
[1738264824216,4.1638,240.13,240.07,11.35779856]
[1738264826017,4.1638,240.13,240.08,4.1645]
[1738264826319,0.02685981,240.15,240.09,7.19309856]
[1738264826509,0.02685981,240.15,240.1,4.1642]
[1738264826816,0.02685981,240.15,240.07,7.19309856]
[1738264828414,0.02685981,240.15,240.09,7.19309856]
[1738264828610,4.1632,240.17,240.13,7.19309856]
[1738264828817,0.03181672,240.14,240.13,7.19309856]
[1738264829016,7.19309856,240.2,240.13,7.19309856]
[1738264829217,0.02645107,240.16,240.11,7.19309856]
[1738264830019,0.02645107,240.16,240.13,7.19309856]
[1738264830215,4.163,240.17,240.13,7.19309856]
[1738264830516,4.18943606,240.17,240.13,7.19309856]
[1738264830715,4.1632,240.16,240.12,4.1639]
[1738264831221,4.18980275,240.16,240.12,4.1639]
[1738264831414,4.1634,240.15,240.11,4.1641]
[1738264831614,7.21970131,240.16,240.06,7.19309856]
[1738264831919,7.19309856,240.16,240.06,7.19309856]
[1738264832115,4.19386881,240.13,240.09,4.1644]
[1738264832618,0.03006881,240.13,240.06,7.19309856]
[1738264832918,0.03006881,240.13,240.1,4.1642]
[1738264835421,7.19309856,240.12,240.04,7.19309856]
[1738264835922,4.1643,240.1,240.06,4.1649]
[1738264836220,4.1643,240.1,240.04,7.19309856]
[1738264837021,0.03006881,240.13,240.07,4.1648]
[1738264837221,7.19309856,240.14,240.07,4.1648]
[1738264837421,0.02679329,240.12,240.07,4.1648]
[1738264837719,4.19079329,240.12,240.07,4.1648]
[1738264838018,0.02679329,240.12,240.1,4.1642]
[1738264839020,0.02679329,240.12,240.08,7.19309856]
[1738264839621,0.02679329,240.12,240.06,7.19309856]
[1738264839817,7.21989185,240.12,240.04,7.19309856]
[1738264840518,7.19309856,240.1,240.02,7.19309856]
[1738264841021,4.1653,240.04,240.0,7.19309856]
[1738264841423,0.03106329,240.04,239.98,7.19309856]
[1738264841623,7.22416185,240.04,239.96,7.19309856]
[1738264842123,4.1658,240.02,239.97,4.1665]
[1738264842322,7.19309856,240.02,239.94,7.19309856]
[1738264843021,7.19309856,240.0,239.87,2.8233]
[1738264843219,7.19309856,239.96,239.88,7.19309856]
[1738264843420,7.22109859,239.96,239.88,7.19309856]
[1738264843718,4.1671,239.94,239.89,4.1679]
[1738264843925,7.22109859,239.96,239.88,7.19309856]
[1738264844424,11.38789859,239.96,239.9,7.19309856]
[1738264844620,0.02800003,239.96,239.86,11.25020672]
[1738264844824,0.02800003,239.96,239.87,4.1681]
[1738264844825,4.1673,239.93,239.87,4.1681]
[1738264845327,4.1674,239.92,239.86,4.1684]
[1738264845719,0.03156384,239.91,239.86,4.1684]
[1738264846218,0.03156384,239.91,239.8,11.25020672]
[1738264846422,4.19916384,239.91,239.84,4.1686]
[1738264846623,0.03156384,239.91,239.8,11.25020672]
[1738264846824,0.03156384,239.91,239.83,4.1689]
[1738264846825,4.168,239.89,239.83,4.1689]
[1738264847225,0.03156384,239.91,239.77,11.25020672]
[1738264847425,2.7415,239.9,239.77,11.25020672]
[1738264847827,0.02824809,239.86,239.77,11.25020672]
[1738264848230,4.19664809,239.86,239.8,4.1694]
[1738264848433,0.02824809,239.86,239.8,4.1694]
[1738264849131,0.02824809,239.86,239.77,11.25020672]
[1738264849334,0.02824809,239.86,239.81,4.1693]
[1738264850326,4.1686,239.85,239.74,11.25020672]
[1738264850930,4.1689,239.84,239.74,11.25020672]
[1738264851534,4.1691,239.82,239.71,14.03050672]
[1738264852029,0.02813431,239.79,239.75,4.1703]
[1738264852531,0.02813431,239.79,239.68,11.25020672]
[1738264852734,4.1698,239.78,239.72,4.1707]
[1738264853239,0.02813431,239.79,239.65,2.64]
[1738264853240,4.1704,239.75,239.65,11.25020672]
[1738264853530,4.1704,239.75,239.62,11.25020672]
[1738264853733,11.25020672,239.77,239.62,11.25020672]
[1738264853734,0.03095941,239.72,239.62,11.25020672]
[1738264854327,0.03095941,239.72,239.68,4.1715]
[1738264854633,0.03095941,239.72,239.62,11.25020672]
[1738264855239,0.03095941,239.72,239.59,11.25020672]
[1738264855438,0.03095941,239.72,239.6,0.7552671]
[1738264855629,0.03095941,239.72,239.59,11.25020672]
[1738264855834,4.1711,239.71,239.59,11.25020672]
[1738264856033,0.03095941,239.72,239.62,11.25020672]
[1738264856234,11.25020672,239.77,239.62,11.25020672]
[1738264856534,0.02952117,239.69,239.59,11.25020672]
[1738264856737,0.02952117,239.69,239.6,0.75525894]
[1738264857034,0.02952117,239.69,239.62,4.1725]
[1738264857239,0.02952117,239.69,239.59,11.25020672]
[1738264857441,0.02952117,239.69,239.6,0.75526237]
[1738264858036,0.02952117,239.69,239.68,4.1715]
[1738264861037,0.02952117,239.69,239.66,4.1717]
[1738264861239,0.02952117,239.69,239.62,11.25020672]
[1738264861836,0.02952117,239.69,239.66,4.1718]
[1738264862041,0.02952117,239.69,239.62,11.25020672]
[1738264863244,0.02952117,239.69,239.67,4.1717]
[1738264863745,0.02952117,239.69,239.68,4.1715]
[1738264864246,4.1698,239.78,239.73,4.1705]
[1738264864445,11.25020672,239.86,239.71,11.25020672]
[1738264864945,4.1692,239.82,239.71,11.25020672]
[1738264865244,4.1692,239.82,239.76,4.17]
[1738264865444,0.02977106,239.79,239.74,0.0314489]
[1738264868548,0.02977106,239.79,239.75,4.1702]
[1738264868846,0.02977106,239.79,239.74,0.0314489]
[1738264869043,0.02977106,239.79,239.78,4.1698]
[1738264869643,0.02977106,239.79,239.74,0.0314489]
[1738264870951,0.02977106,239.79,239.76,4.17]
[1738264871254,0.02977106,239.79,239.74,0.0314489]
[1738264872555,4.19957106,239.79,239.74,4.2019489]
[1738264872852,0.02977106,239.79,239.74,4.2019489]
[1738264874050,4.1698,239.78,239.74,4.2019489]
[1738264874246,4.1698,239.78,239.74,0.0314489]
[1738264874451,0.02977106,239.79,239.74,0.0314489]
[1738264874951,4.17,239.77,239.74,0.0314489]
[1738264875554,4.19947106,239.79,239.74,0.0314489]
[1738264877045,4.19947106,239.79,239.75,4.1703]
[1738264879256,4.1698,239.78,239.74,4.2019489]
[1738264880251,0.02977106,239.79,239.74,0.0314489]
[1738264880951,4.1703,239.76,239.74,0.0314489]
[1738264881147,0.02977106,239.79,239.74,0.0314489]
[1738264881345,11.25020672,239.77,239.62,1.4055]
[1738264881554,11.25020672,239.71,239.56,11.25020672]
[1738264881754,4.1717,239.68,239.62,4.1725]
[1738264882059,11.25020672,239.71,239.62,4.1725]
[1738264882656,4.1719,239.67,239.62,4.1725]
[1738264883157,4.1719,239.67,239.56,11.25020672]
[1738264883456,4.1719,239.67,239.63,4.1724]
[1738264883651,0.02912611,239.64,239.63,4.1724]
[1738264885453,4.1706,239.74,239.62,11.25020672]
[1738264885753,11.25020672,239.83,239.68,11.25020672]
[1738264886153,4.1696,239.8,239.74,4.1703]
[1738264886355,4.1696,239.8,239.68,9.6661008]
[1738264886550,0.02842874,239.79,239.75,0.03127325]
[1738264887460,0.02842874,239.79,239.76,4.1701]
[1738264890158,0.02842874,239.79,239.75,0.03127325]
[1738264892667,4.1701,239.76,239.75,0.03127325]
[1738264893071,11.25020672,239.77,239.6,2.8193]
[1738264893368,4.1709,239.72,239.65,4.172]
[1738264893563,11.25020672,239.74,239.65,4.172]
[1738264893769,11.25020672,239.74,239.6,1.382]
[1738264894372,4.20005347,239.69,239.63,4.1723]
[1738264894567,0.02865347,239.69,239.63,4.1723]
[1738264895175,0.02865347,239.69,239.59,11.25020672]
[1738264895675,0.02865347,239.69,239.62,4.1726]
[1738264895870,0.02865347,239.69,239.59,11.25020672]
[1738264896171,0.02865347,239.69,239.62,4.1726]
[1738264896371,0.02865347,239.69,239.59,11.25020672]
[1738264897371,0.02865347,239.69,239.67,4.1717]
[1738264898076,0.02865347,239.69,239.68,4.1715]
[1738264900974,0.02865347,239.69,239.59,11.25020672]
[1738264901474,0.02865347,239.69,239.66,4.1718]
[1738264901774,0.02865347,239.69,239.59,11.25020672]
[1738264902076,74.02951459,239.82,239.68,11.25020672]
[1738264902373,74.02951459,239.82,239.71,11.25020672]
[1738264902874,74.02951459,239.82,239.69,1.4397]
[1738264903276,0.03172798,239.78,239.73,0.02865348]
[1738264903478,0.03172798,239.78,239.74,4.1704]
[1738264903878,0.03172798,239.78,239.75,4.1703]
[1738264904077,0.03172798,239.78,239.73,0.02865348]
[1738264904974,4.1705,239.74,239.73,0.02865348]
[1738264906680,4.1709,239.72,239.68,4.1715]
[1738264907783,4.20031145,239.72,239.68,4.1715]
[1738264908083,0.02941145,239.72,239.68,4.1715]
[1738264908378,0.02941145,239.72,239.66,4.1718]
[1738264908579,0.02941145,239.72,239.62,11.25020672]
[1738264908980,4.1711,239.71,239.66,4.1718]
[1738264909683,0.02941145,239.72,239.62,11.25020672]
[1738264909983,0.02941145,239.72,239.65,11.25020672]
[1738264910581,0.02941145,239.72,239.71,4.1711]
[1738264913887,1.145e-05,239.72,239.71,15.42130672]
[1738264914090,85.2579608,239.9,239.71,11.25020672]
[1738264914383,4.1685,239.86,239.76,11.25020672]
[1738264914590,11.25020672,239.87,239.73,11.25020672]
[1738264915085,11.25020672,239.87,239.72,4.1761]
[1738264915086,11.25020672,239.87,239.78,0.02663058]
[1738264915392,0.02976349,239.82,239.78,0.02663058]
[1738264915596,4.1693,239.81,239.78,0.02663058]
[1738264915798,0.02976349,239.82,239.78,0.02663058]
[1738264916295,4.1696,239.8,239.78,0.02663058]
[1738264916597,0.02976349,239.82,239.78,0.02663058]
[1738264916792,4.1696,239.8,239.78,0.02663058]
[1738264917093,0.02976349,239.82,239.78,0.02663058]
[1738264917490,4.1697,239.79,239.78,0.02663058]
[1738264920789,4.1697,239.79,239.78,3.058e-05]
[1738264923600,1.3948,239.8,239.64,1.391]
[1738264923802,11.25020672,239.76,239.67,4.1717]
[1738264924801,0.0290569,239.74,239.67,4.1717]
[1738264925102,4.1711,239.71,239.67,4.1717]
[1738264925303,4.1711,239.71,239.61,12.69360672]
[1738264925504,4.1711,239.71,239.68,4.1715]
[1738264926604,0.0289759,239.72,239.61,1.4434]
[1738264926804,0.0289759,239.72,239.61,12.69360672]
[1738264927005,4.1711,239.71,239.67,4.1717]
[1738264927203,0.0289759,239.72,239.61,12.69360672]
[1738264927603,0.0289759,239.72,239.68,4.1714]
[1738264928005,0.0289759,239.72,239.61,12.69360672]
[1738264928708,4.1998759,239.72,239.64,4.1722]
[1738264929000,4.1998759,239.72,239.61,12.69360672]
[1738264929607,4.1998759,239.72,239.67,4.1716]
[1738264930705,0.0289759,239.72,239.61,1.4434]
[1738264930906,0.0289759,239.72,239.59,2.863]
[1738264931107,4.1723,239.64,239.59,7.0361]
[1738264931304,4.1723,239.64,239.59,2.863]
[1738264931504,0.02635948,239.64,239.59,2.863]
[1738264931706,4.1725,239.63,239.59,5.5875]
[1738264932004,0.02635948,239.64,239.59,5.5875]
[1738264932506,4.1725,239.63,239.59,5.5875]
[1738264932707,4.1725,239.63,239.59,1.4144]
[1738264933703,4.1725,239.63,239.59,4.1731]
[1738264934006,0.02635948,239.64,239.59,4.1731]
[1738264934206,4.1725,239.63,239.59,4.1731]
[1738264934505,0.02635948,239.64,239.59,4.1731]
[1738264935298,4.19875948,239.64,239.59,4.1731]
[1738264935804,0.02635948,239.64,239.56,10.0182222]
[1738264936005,0.02635948,239.64,239.56,1.4226]
[1738264936406,4.1726,239.62,239.52,12.59200672]
[1738264937702,0.02635948,239.64,239.56,11.25020672]
[1738264939209,0.02635948,239.64,239.6,4.1728]
[1738264939412,0.02635948,239.64,239.53,11.25020672]
[1738264939602,0.02635948,239.64,239.54,0.75545856]
[1738264939800,4.1727,239.62,239.58,4.1732]
[1738264941310,0.02635948,239.64,239.58,4.1732]
[1738264942412,4.1727,239.62,239.58,4.1732]
[1738264943313,4.1728,239.61,239.57,4.1735]
[1738264944212,0.02635948,239.64,239.57,4.1735]
[1738264944413,0.02635948,239.64,239.55,4.1737]
[1738264944615,0.02635948,239.64,239.52,1.3418]
[1738264944907,4.1728,239.61,239.53,11.25020672]
[1738264945212,0.02635948,239.64,239.53,11.25020672]
[1738264945412,4.1728,239.61,239.57,4.1734]
[1738264946009,4.19865948,239.64,239.53,11.25020672]
[1738264946209,0.02635948,239.64,239.56,11.25020672]
[1738264946410,0.02635948,239.64,239.59,11.25020672]
[1738264946611,0.02635948,239.64,239.6,1.4647]
[1738264946811,0.02635948,239.64,239.6,2.8487]
[1738264947013,0.02635948,239.64,239.61,1.3595]
[1738264947313,74.05005066,239.76,239.61,1.3595]
[1738264947513,12.66310672,239.8,239.65,11.25020672]
[1738264947909,4.1702,239.76,239.65,11.25020672]
[1738264948111,12.66310672,239.8,239.65,11.25020672]
[1738264948509,0.02724101,239.75,239.7,4.19989983]
[1738264950214,4.19764101,239.75,239.7,4.19989983]
[1738264950418,4.19764101,239.75,239.65,11.25020672]
[1738264951114,0.02724101,239.75,239.65,11.25020672]
[1738264951318,4.1709,239.72,239.62,11.25020672]
[1738264951518,4.1709,239.72,239.65,4.1721]
[1738264951714,0.02903559,239.69,239.62,11.25020672]
[1738264952321,0.02903559,239.69,239.67,4.1717]
[1738264954316,0.02903559,239.69,239.68,4.1716]
[1738264954521,11.25020672,239.8,239.65,11.25020672]
[1738264954820,11.25020672,239.83,239.68,11.25020672]
[1738264955016,190.0,239.88,239.61,1.3595]
[1738264955017,11.25020672,239.86,239.71,11.25020672]
[1738264955617,0.03078878,239.81,239.76,0.02937611]
[1738264955816,0.03078878,239.81,239.79,4.1696]
[1738264956017,0.03078878,239.81,239.76,0.02937611]
[1738264956523,4.1697,239.79,239.76,0.02937611]
[1738264957121,0.03078878,239.81,239.76,0.02937611]
[1738264957323,4.1695,239.8,239.76,0.02937611]
[1738264957525,0.03078878,239.81,239.76,0.02937611]
[1738264958220,11.25020672,239.8,239.76,0.02937611]
[1738264958420,0.03078878,239.81,239.76,0.02937611]
[1738264960422,4.20028878,239.81,239.76,4.19957611]
[1738264960723,0.03078878,239.81,239.76,0.02937611]
[1738264961520,11.25020672,239.96,239.8,11.25020672]
[1738264962226,4.1678,239.9,239.83,4.1688]
[1738264962418,4.1678,239.9,239.8,11.25020672]
[1738264962724,0.02822807,239.87,239.83,0.03036027]
[1738264963116,4.1685,239.86,239.83,0.03036027]
[1738264963322,0.02822807,239.87,239.83,0.03036027]
[1738264963521,4.19652807,239.87,239.83,0.03036027]
[1738264963719,0.02822807,239.87,239.83,0.03036027]
[1738264964018,4.1688,239.84,239.83,0.03036027]
[1738264965617,4.1685,239.86,239.83,0.03036027]
[1738264965827,0.02822807,239.87,239.83,0.03036027]
[1738264966422,4.1685,239.86,239.83,0.03036027]
[1738264966923,0.02822807,239.87,239.83,0.03036027]
[1738264968822,4.1685,239.86,239.83,0.03036027]
[1738264969321,0.02822807,239.87,239.83,0.03036027]
[1738264969525,4.1688,239.84,239.83,0.03036027]
[1738264970131,15.41900672,239.84,239.83,0.03036027]